fUSD/lending_fUSD_20250427
["ID","MTS","AMOUNT","RATE_DAILY","PERIOD"]
[359154584,1745749272246,-400.0,0.00019887,2]
[359154585,1745749272270,-410.27873361,0.00019887,2]
[359154586,1745749272294,-400.0,0.00019887,2]
[359154587,1745749272319,-151.0,0.00019887,2]
[359154588,1745749272343,-151.0,0.00019887,2]
[359154589,1745749272367,-400.0,0.00019887,2]
[359154590,1745749272391,-400.0,0.00019887,2]
[359154591,1745749272415,-400.0,0.00019887,2]
[359154592,1745749272440,-400.0,0.00019887,2]
[359154593,1745749272472,-400.0,0.00019887,2]
[359154594,1745749272499,-400.0,0.00019887,2]
[359154595,1745749272526,-400.0,0.00019887,2]
[359154596,1745749272555,-400.0,0.00019887,2]
[359154597,1745749272578,-157.172622,0.00019887,2]
[359154598,1745749272602,-447.88,0.00019887,2]
[359154599,1745749272626,-400.0,0.00019887,2]
[359154600,1745749272650,-400.0,0.00019887,2]
[359154601,1745749272676,-400.0,0.00019887,2]
[359154602,1745749272702,-165.5616426,0.00019887,2]
[359154603,1745749272728,-400.0,0.00019887,2]
[359154604,1745749272753,-151.0,0.00019887,2]
[359154605,1745749272778,-151.0,0.00019887,2]
[359154606,1745749272801,-151.0,0.00019887,2]
[359154607,1745749272828,-151.0,0.00019887,2]
[359154608,1745749272854,-151.0,0.00019887,2]
[359154609,1745749272878,-240.592076,0.00019887,2]
[359154610,1745749272902,-400.0,0.00019887,2]
[359154611,1745749272928,-400.0,0.00019887,2]
[359154612,1745749272955,-154.257218,0.00019887,2]
[359154613,1745749272994,-151.0,0.00019887,2]
[359154614,1745749273022,-251.679737,0.00019887,2]
[359154615,1745749273051,-400.0,0.00019887,2]
[359154616,1745749273161,-400.0,0.00019887,2]
[359154617,1745749273185,-774.73,0.00019887,2]
[359154618,1745749273210,-400.0,0.00019887,2]
[359154619,1745749273234,-200.536913,0.00019887,2]
[359154620,1745749273259,-200.536913,0.00019887,2]
[359154621,1745749273283,-200.536913,0.00019887,2]
[359154622,1745749273308,-200.536913,0.00019887,2]
[359154623,1745749273334,-200.536913,0.00019887,2]
[359154624,1745749273360,-200.536913,0.00019887,2]
[359154625,1745749273384,-400.0,0.00019887,2]
[359154626,1745749273408,-400.0,0.00019887,2]
[359154627,1745749273433,-400.0,0.00019887,2]
[359154628,1745749273461,-400.0,0.00019887,2]
[359154629,1745749273485,-400.0,0.00019887,2]
[359154630,1745749273509,-400.0,0.00019887,2]
[359154631,1745749273532,-400.0,0.00019887,2]
[359154632,1745749273557,-400.0,0.00019887,2]
[359154633,1745749273581,-400.0,0.00019887,2]
[359154634,1745749273605,-6454.52,0.00019887,2]
[359154635,1745749273628,-400.0,0.00019887,2]
[359154636,1745749273652,-3136.23,0.00019887,2]
[359154637,1745749273675,-400.0,0.00019887,2]
[359154638,1745749273699,-1090.12,0.00019887,2]
[359154639,1745749273723,-400.0,0.00019887,2]
[359154640,1745749273747,-462.54,0.00019887,2]
[359154641,1745749273771,-400.0,0.00019887,2]
[359154642,1745749273796,-400.0,0.00019887,2]
[359154643,1745749273820,-151.0,0.00019887,2]
[359154644,1745749273845,-155.763439,0.00019887,2]
[359154645,1745749273869,-607.18,0.00019887,2]
[359154646,1745749273893,-3563.48,0.00019887,2]
[359154647,1745749273917,-400.0,0.00019887,2]
[359154648,1745749273943,-400.0,0.00019887,2]
[359154649,1745749273970,-400.0,0.00019887,2]
[359154650,1745749273993,-400.0,0.00019887,2]
[359154651,1745749274017,-400.0,0.00019887,2]
[359154652,1745749274042,-400.0,0.00019887,2]
[359154653,1745749274066,-400.0,0.00019887,2]
[359154654,1745749274090,-400.0,0.00019887,2]
[359154655,1745749274114,-400.0,0.00019887,2]
[359154656,1745749274138,-400.0,0.00019887,2]
[359154657,1745749274162,-162.502586,0.00019887,2]
[359154658,1745749274186,-162.502586,0.00019887,2]
[359154659,1745749274210,-162.502586,0.00019887,2]
[359154660,1745749274233,-162.502586,0.00019887,2]
[359154661,1745749274256,-162.502586,0.00019887,2]
[359154662,1745749274280,-162.502586,0.00019887,2]
[359154663,1745749274303,-415.3969919,0.00019887,2]
[359154664,1745749274327,-162.502586,0.00019887,2]
[359154665,1745749274352,-162.502586,0.00019887,2]
[359154666,1745749274377,-400.0,0.00019887,2]
[359154667,1745749274402,-162.502586,0.00019887,2]
[359154668,1745749274425,-162.502586,0.00019887,2]
[359154669,1745749274454,-162.502586,0.00019887,2]
[359154670,1745749274477,-162.502586,0.00019887,2]
[359154671,1745749274503,-151.0,0.00019887,2]
[359154672,1745749274527,-151.0,0.00019887,2]
[359154673,1745749274552,-151.0,0.00019887,2]
[359154674,1745749274576,-185.338026,0.00019887,2]
[359154675,1745749274600,-409.73,0.00019887,2]
[359154676,1745749274624,-400.0,0.00019887,2]
[359154677,1745749274649,-400.0,0.00019887,2]
[359154678,1745749274673,-400.0,0.00019887,2]
[359154679,1745749274699,-400.0,0.00019887,2]
[359154680,1745749274724,-400.0,0.00019887,2]
[359154681,1745749274749,-400.0,0.00019887,2]
[359154682,1745749274774,-151.0,0.00019887,2]
[359154683,1745749274799,-151.0,0.00019887,2]
[359154684,1745749274823,-151.0,0.00019887,2]
[359154685,1745749274849,-552.63,0.00019887,2]
[359154686,1745749274873,-151.0,0.00019887,2]
[359154687,1745749274898,-151.0,0.00019887,2]
[359154688,1745749274922,-151.0,0.00019887,2]
[359154689,1745749274947,-400.0,0.00019887,2]
[359154690,1745749274972,-400.0,0.00019887,2]
[359154691,1745749274996,-491.913351,0.00019887,2]
[359154692,1745749275020,-400.0,0.00019887,2]
[359154693,1745749275044,-400.0,0.00019887,2]
[359154694,1745749275068,-422.56,0.00019887,2]
[359154695,1745749275093,-400.0,0.00019887,2]
[359154696,1745749275117,-529.31170401,0.00019887,2]
[359154697,1745749275141,-823.24,0.00019887,2]
[359154698,1745749275166,-424.50203248,0.00019887,2]
[359154699,1745749275189,-400.0,0.00019887,2]
[359154700,1745749275213,-400.0,0.00019887,2]
[359154701,1745749275237,-247.765891,0.00019887,2]
[359154702,1745749275261,-247.765891,0.00019887,2]
[359154703,1745749275285,-247.765891,0.00019887,2]
[359154704,1745749275308,-247.765891,0.00019887,2]
[359154705,1745749275333,-400.0,0.00019887,2]
[359154706,1745749275357,-247.765891,0.00019887,2]
[359154707,1745749275380,-400.0,0.00019887,2]
[359154708,1745749275404,-247.765891,0.00019887,2]
[359154709,1745749275428,-247.765891,0.00019887,2]
[359154710,1745749275455,-247.765891,0.00019887,2]
[359154711,1745749275481,-640.92,0.00019887,2]
[359154712,1745749275504,-247.765891,0.00019887,2]
[359154713,1745749275638,-247.765891,0.00019887,2]
[359154714,1745749275665,-400.0,0.00019887,2]
[359154715,1745749275689,-247.765891,0.00019887,2]
[359154716,1745749275713,-247.765891,0.00019887,2]
[359154717,1745749275738,-400.0,0.00019887,2]
[359154718,1745749275762,-24928.36548632,0.00019887,2]
[359154719,1745749276322,12500.0,0.00012532,2]
[359154767,1745749527306,2230.11549271,0.00036,60]
[359154769,1745749589232,9815.28,0.00018871,2]
[359154774,1745749665141,1000.0,0.00018861,2]
[359154775,1745749761828,250.0,0.00017,2]
[359154776,1745749762912,60.0,0.00019,2]
[359154777,1745749762940,240.0,0.00019,2]
[359154788,1745749811917,153.93,0.00018845,2]
[359154792,1745749831917,-200.0,0.00019571,2]
[359154793,1745749831926,-200.0,0.00019588,2]
[359154794,1745749831936,-250.0,0.00019606,2]
[359154795,1745749831945,-200.0,0.00019641,2]
[359154796,1745749831954,-824.235308,0.00019643,2]
[359154797,1745749831964,-300.0,0.00019772,2]
[359154798,1745749831973,-324.19312786,0.00019773,2]
[359154811,1745749835827,-116.16768097,0.00019773,2]
[359154812,1745749835837,-300.0,0.00019773,2]
[359154813,1745749835847,-1200.0,0.00019773,2]
[359154814,1745749835857,-50.74280601,0.00019774,2]
[359154815,1745749835875,-629.2309632,0.00019774,2]
[359154817,1745749837951,-457.78,0.00019774,2]
[359154818,1745749838109,-3027.42663079,0.00019774,2]
[359154819,1745749838119,-1015.39826272,0.00019774,2]
[359155014,1745749840108,-390.86603728,0.00019774,2]
[359155016,1745749840118,-500.0,0.00019774,2]
[359155018,1745749840128,-500.0,0.00019774,2]
[359155020,1745749840138,-500.0,0.00019774,2]
[359155022,1745749840148,-250.62194157,0.00019774,2]
[359155024,1745749840158,-492.31764034,0.00019774,2]
[359155026,1745749840167,-500.0,0.00019774,2]
[359155028,1745749840176,-521.81318872,0.00019774,2]
[359155030,1745749840185,-44.36115809,0.00019775,2]
[359155066,1745749840528,-1500.0,0.00019775,2]
[359155324,1745749843064,-1227.98738991,0.00019775,2]
[359155331,1745749843119,-541.54300055,0.00019775,2]
[359155357,1745749843364,-2307.31816579,0.00019775,2]
[359155674,1745749846176,-2340.41885217,0.00019775,2]
[359155681,1745749846231,-2291.98376,0.00019775,2]
[359156403,1745749900299,154.0,0.0003698,60]
[359156420,1745750344762,454.78,0.00016938,2]
[359156421,1745750345017,454.78,0.00019202,2]
[359156422,1745750482477,200.0,0.00018849,2]
[359156423,1745750522299,199.02054066,0.00018755,2]
[359156424,1745750679002,1000.0,0.00018831,2]
[359156425,1745750917723,223.90268674,0.0002,5]
[359156431,1745750919219,453.36253562,0.000369,60]
[359156527,1745751038152,-164.33,0.00019418,2]
[359156528,1745751038162,-200.0,0.00019439,2]
[359156529,1745751038172,-75.29846435,0.000195,2]
[359156763,1745751040673,-424.70153565,0.000195,2]
[359156765,1745751040682,-200.0,0.00019514,2]
[359156767,1745751040691,-150.0,0.00019616,2]
[359156769,1745751040700,-150.0,0.00019653,2]
[359156771,1745751040710,-162.5,0.00019673,2]
[359156773,1745751040719,-162.5,0.00019684,2]
[359156775,1745751040729,-162.5,0.00019696,2]
[359156777,1745751040738,-162.5,0.00019707,2]
[359156779,1745751040747,-150.0,0.00019708,2]
[359156782,1745751040758,-150.0,0.00019709,2]
[359156783,1745751040767,-162.5,0.00019719,2]
[359156786,1745751040777,-162.5,0.0001973,2]
[359156787,1745751040787,-162.5,0.00019742,2]
[359156789,1745751040797,-573.56606581,0.00019744,2]
[359157050,1745751043393,-426.43393419,0.00019744,2]
[359157052,1745751043403,-162.5,0.00019753,2]
[359157054,1745751043413,-405.36612865,0.00019771,2]
[359157065,1745751043506,-127.71932695,0.00019771,2]
[359157067,1745751043515,-500.0,0.00019772,2]
[359157068,1745751043525,-2339.3254,0.00019773,2]
[359157070,1745751043535,-1200.0,0.00019782,2]
[359157072,1745751043545,-1900.6772346,0.00019783,2]
[359157074,1745751043554,-533.08545554,0.00019785,2]
[359157076,1745751043563,-533.08545554,0.000198,2]
[359157078,1745751043573,-199.93840046,0.000198,2]
[359157080,1745751043583,-533.08545554,0.00019814,2]
[359157082,1745751043592,-278.58432329,0.00019828,2]
[359157085,1745751043604,-254.50113225,0.00019828,2]
[359157087,1745751043613,-207.4,0.00019832,2]
[359157089,1745751043623,-533.08545554,0.00019843,2]
[359157091,1745751043632,-216.07771838,0.00019852,2]
[359157093,1745751043641,-3080.88175732,0.00019853,2]
[359157356,1745751046275,-199.93840045,0.0001985,2]
[359157358,1745751046284,-740.06159955,0.00019853,2]
[359157383,1745751046538,-161.02455122,0.00019853,2]
[359157385,1745751046548,-533.08545554,0.00019857,2]
[359157387,1745751046557,-150.0,0.00019862,2]
[359157389,1745751046567,-194.97827707,0.0001987,2]
[359157391,1745751046576,-165.81307115,0.0001987,2]
[359157393,1745751046586,-3902.61302862,0.00019871,2]
[359159212,1745751069360,1629.44,0.00018887,2]
[359159213,1745751307617,1451.845816,7.945e-05,2]
[359159214,1745751351813,471.01754159,0.00019,2]
[359159221,1745751591784,439.71,0.00016912,2]
[359159222,1745751591972,439.71,0.00019176,2]
[359159223,1745751596320,250.0,0.00017,2]
[359159224,1745751597393,300.0,0.00019,2]
[359159225,1745751733532,570.58,0.00018821,2]
[359159226,1745751733555,429.42,0.00018821,2]
[359159227,1745751913782,153.93,0.00018838,2]
[359159228,1745752014443,-339.48444881,0.00019371,2]
[359159247,1745752134721,-2113.37064071,0.0003254,30]
[359159249,1745752134747,-1000.0,0.00032876,30]
[359159250,1745752134773,-1000.0,0.00032876,30]
[359159251,1745752134799,-1000.0,0.00032876,30]
[359159252,1745752134825,-1000.0,0.00032876,30]
[359159253,1745752134849,-1000.0,0.00032876,30]
[359159254,1745752134873,-1000.0,0.00032876,30]
[359159255,1745752134896,-1000.0,0.00032876,30]
[359159256,1745752134919,-1000.0,0.00032876,30]
[359159257,1745752134944,-1000.0,0.00032876,30]
[359159258,1745752134967,-1000.0,0.00032876,30]
[359159259,1745752134991,-1000.0,0.00032876,30]
[359159260,1745752135014,-1000.0,0.00032876,30]
[359159261,1745752135038,-1000.0,0.00032876,30]
[359159262,1745752135063,-1000.0,0.00032876,30]
[359159263,1745752135087,-1000.0,0.00032876,30]
[359159264,1745752135110,-221.20707633,0.00032876,30]
[359159265,1745752135136,-300.0,0.00032876,30]
[359159266,1745752135159,-300.0,0.00032876,30]
[359159267,1745752135182,-302.09781464,0.00032876,30]
[359159268,1745752135209,-186.99,0.00032877,30]
[359159269,1745752135234,-990.0,0.00032877,30]
[359159270,1745752135263,-186.22,0.000335,31]
[359159271,1745752135295,-186.22,0.000335,31]
[359159272,1745752135324,-186.22,0.000335,31]
[359159273,1745752135354,-186.22,0.000335,31]
[359159274,1745752135381,-186.22,0.000335,31]
[359159275,1745752135410,-186.22,0.000335,31]
[359159276,1745752135441,-186.22,0.000335,31]
[359159277,1745752135470,-186.22,0.000335,31]
[359159278,1745752135498,-186.22,0.000335,31]
[359159279,1745752135530,-186.22,0.000335,31]
[359159280,1745752135559,-186.22,0.000335,31]
[359159281,1745752135586,-186.22,0.000335,31]
[359159282,1745752135616,-186.22,0.000343,31]
[359159283,1745752135644,-186.22,0.000343,31]
[359159284,1745752135673,-186.22,0.000343,31]
[359159285,1745752135701,-186.22,0.000343,31]
[359159286,1745752135730,-186.22,0.000343,31]
[359159287,1745752135757,-186.22,0.000343,31]
[359159288,1745752135786,-186.22,0.000343,31]
[359159289,1745752135813,-186.22,0.000343,31]
[359159290,1745752135840,-186.22,0.000343,31]
[359159291,1745752135869,-186.22,0.000343,31]
[359159292,1745752135896,-186.22,0.000343,31]
[359159293,1745752135924,-186.22,0.000343,31]
[359159294,1745752135956,-186.22,0.000343,31]
[359159295,1745752135992,-186.22,0.000343,31]
[359159296,1745752136024,-186.22,0.000343,31]
[359159297,1745752136057,-186.22,0.000343,31]
[359159298,1745752136091,-186.22,0.000343,31]
[359159299,1745752136126,-186.22,0.000343,31]
[359159300,1745752136162,-186.22,0.000343,31]
[359159301,1745752136194,-186.22,0.000343,31]
[359159302,1745752136224,-186.22,0.000343,31]
[359159303,1745752136257,-186.22,0.000343,31]
[359159304,1745752136289,-186.22,0.000343,31]
[359159305,1745752136323,-186.22,0.000343,31]
[359159306,1745752136360,-186.22,0.00035,31]
[359159307,1745752136395,-186.22,0.00035,31]
[359159308,1745752136429,-186.22,0.00035,31]
[359159309,1745752136466,-186.22,0.00035,31]
[359159310,1745752136501,-186.22,0.00035,31]
[359159311,1745752136535,-186.22,0.00035,31]
[359159312,1745752136568,-186.22,0.00035,31]
[359159313,1745752136604,-186.22,0.00035,31]
[359159314,1745752136637,-186.22,0.00035,31]
[359159315,1745752136668,-186.22,0.00035,31]
[359159316,1745752136699,-186.22,0.00035,31]
[359159317,1745752136733,-186.22,0.00035,31]
[359159318,1745752136768,-186.22,0.00035,31]
[359159319,1745752136799,-186.22,0.00035,31]
[359159320,1745752136830,-186.22,0.00035,31]
[359159321,1745752136867,-186.22,0.00035,31]
[359159322,1745752136897,-186.22,0.00035,31]
[359159323,1745752136927,-186.22,0.00035,31]
[359159324,1745752136957,-186.22,0.00035,31]
[359159325,1745752136993,-186.22,0.00035,31]
[359159326,1745752137024,-186.22,0.00035,31]
[359159327,1745752137056,-186.22,0.00035,31]
[359159328,1745752137087,-186.22,0.00035,31]
[359159329,1745752137119,-186.22,0.00035,31]
[359159330,1745752137155,-186.22,0.000358,31]
[359159331,1745752137188,-186.22,0.000358,31]
[359159332,1745752137219,-186.22,0.000358,31]
[359159333,1745752137251,-186.22,0.000358,31]
[359159334,1745752137282,-186.22,0.000358,31]
[359159335,1745752137313,-186.22,0.000358,31]
[359159336,1745752137343,-186.22,0.000358,31]
[359159337,1745752137373,-186.22,0.000358,31]
[359159338,1745752137404,-186.22,0.000358,31]
[359159339,1745752137435,-186.22,0.000358,31]
[359159340,1745752137466,-186.22,0.000358,31]
[359159341,1745752137496,-186.22,0.000358,31]
[359159342,1745752137528,-186.22,0.000358,31]
[359159343,1745752137560,-186.22,0.000358,31]
[359159344,1745752137592,-186.22,0.000358,31]
[359159345,1745752137623,-186.22,0.000358,31]
[359159346,1745752137653,-186.22,0.000358,31]
[359159347,1745752137685,-186.22,0.000358,31]
[359159348,1745752137715,-186.22,0.000358,31]
[359159349,1745752137746,-186.22,0.000358,31]
[359159350,1745752137780,-186.22,0.000358,31]
[359159351,1745752137811,-186.22,0.000358,31]
[359159352,1745752137843,-186.22,0.000358,31]
[359159353,1745752137873,-186.22,0.000358,31]
[359159354,1745752137906,-186.22,0.000365,31]
[359159355,1745752137940,-186.22,0.000365,31]
[359159356,1745752137972,-186.22,0.000365,31]
[359159357,1745752138003,-186.22,0.000365,31]
[359159358,1745752138033,-186.22,0.000365,31]
[359159359,1745752138063,-186.22,0.000365,31]
[359159360,1745752138094,-186.22,0.000365,31]
[359159361,1745752138125,-186.22,0.000365,31]
[359159362,1745752138156,-186.22,0.000365,31]
[359159363,1745752138187,-186.22,0.000365,31]
[359159364,1745752138217,-186.22,0.000365,31]
[359159365,1745752138249,-186.22,0.000365,31]
[359159366,1745752138280,-186.22,0.000365,31]
[359159367,1745752138310,-186.22,0.000365,31]
[359159368,1745752138342,-186.22,0.000365,31]
[359159370,1745752138376,-186.22,0.000365,31]
[359159371,1745752138404,-435.74109189,0.000372,120]
[359159372,1745752138431,-435.74109185,0.000372,120]
[359159373,1745752138458,-435.74109185,0.000372,120]
[359159374,1745752138487,-435.74109185,0.000372,120]
[359159375,1745752138515,-435.74109185,0.000372,120]
[359159376,1745752138544,-312.0,0.000377,54]
[359159377,1745752138572,-269.86111332,0.00037808,60]
[359159378,1745752138603,-400.0,0.00038,120]
[359159379,1745752138630,-186.99,0.00038356,30]
[359159380,1745752138657,-160.0,0.000387,57]
[359159381,1745752138684,-804.86025094,0.00039,120]
[359159382,1745752138711,-150.0,0.00039,30]
[359159383,1745752138737,-160.0,0.000397,60]
[359159384,1745752138763,-151.6553832,0.000399,30]
[359159385,1745752138796,-271.69932262,0.0004,30]
[359159386,1745752138824,-6007.95527019,0.0004,30]
[359159387,1745752138850,-540.67136275,0.0004,30]
[359159388,1745752138876,-160.36346268,0.0004,120]
[359159389,1745752138903,-3933083.39957611,0.0004,30]
[359159390,1745752138928,-168.76920812,0.0004,120]
[359159391,1745752138954,-80855.54681254,0.0004,120]
[359159392,1745752138980,-157.75,0.0004,30]
[359159393,1745752139007,-157.75,0.0004,30]
[359159394,1745752139034,-1333.0,0.00040658,120]
[359159395,1745752139416,-160.0,0.000407,63]
[359159396,1745752139466,-331.58085,0.00040888,30]
[359159397,1745752139491,-331.58085,0.00041088,30]
[359159398,1745752139515,-430.95,0.00041095,120]
[359159399,1745752139540,-1000.0,0.00041095,30]
[359159400,1745752139563,-200.0,0.00041095,30]
[359159401,1745752139589,-600.0,0.00041095,30]
[359159402,1745752139612,-161.91845434,0.00041095,30]
[359159403,1745752139636,-500.0,0.00041096,30]
[359159404,1745752139659,-477.0,0.00041096,30]
[359159405,1745752139683,-331.58085,0.00041288,30]
[359159406,1745752139706,-331.58085,0.00041488,30]
[359159407,1745752139730,-331.58085,0.00041688,30]
[359159408,1745752139754,-160.0,0.000417,66]
[359159409,1745752139781,-208.0,0.0004188,30]
[359159410,1745752139805,-331.58085,0.00041888,30]
[359159411,1745752139831,-150.5,0.0004197,120]
[359159412,1745752139856,-150.5,0.0004197,120]
[359159413,1745752139881,-150.5,0.0004197,120]
[359159414,1745752139904,-150.5,0.0004197,120]
[359159415,1745752139927,-181.19,0.0004197,120]
[359159416,1745752139951,-298.65,0.0004197,120]
[359159417,1745752139974,-150.5,0.0004198,120]
[359159418,1745752139998,-150.5,0.0004198,120]
[359159419,1745752140022,-150.5,0.0004198,120]
[359159420,1745752140052,-197.69,0.0004198,120]
[359159421,1745752140078,-150.5,0.0004198,120]
[359159422,1745752140103,-150.5,0.0004198,120]
[359159423,1745752140127,-150.5,0.0004198,120]
[359159424,1745752140153,-150.5,0.0004199,120]
[359159425,1745752140178,-150.5,0.0004199,120]
[359159426,1745752140203,-150.5,0.0004199,120]
[359159427,1745752140229,-150.5,0.0004199,120]
[359159428,1745752140253,-150.5,0.0004199,120]
[359159429,1745752140278,-150.5,0.0004199,120]
[359159430,1745752140303,-150.5,0.0004199,120]
[359159431,1745752140328,-400.0,0.00042,120]
[359159432,1745752140353,-331.58085,0.00042088,30]
[359159433,1745752140377,-2000.0,0.00042143,120]
[359159434,1745752140401,-178.115787,0.00042143,120]
[359159435,1745752140425,-331.58085,0.00042288,30]
[359159436,1745752140450,-2560.349,0.00042403,64]
[359159437,1745752140473,-430.95,0.00042465,120]
[359159438,1745752140498,-331.58085,0.00042488,30]
[359159439,1745752140524,-331.58085,0.00042688,30]
[359159440,1745752140549,-160.0,0.000427,69]
[359159441,1745752140574,-331.58085,0.00042888,30]
[359159442,1745752140598,-165.34466123,0.00043,120]
[359159443,1745752140622,-51000.0,0.00043,120]
[359159444,1745752140646,-213.38,0.00043,120]
[359159445,1745752140670,-331.58085,0.00043088,30]
[359159446,1745752140693,-331.58085,0.00043288,30]
[359159447,1745752140717,-1050.82649041,0.0004347,30]
[359159448,1745752140741,-331.58085,0.00043488,30]
[359159449,1745752140764,-535.1,0.000436,120]
[359159450,1745752140791,-516.68,0.000436,120]
[359159451,1745752140815,-2000.0,0.00043643,120]
[359159452,1745752140839,-208.0,0.0004368,30]
[359159453,1745752140864,-331.58085,0.00043688,30]
[359159454,1745752140887,-160.0,0.000437,72]
[359159455,1745752140911,-20662.396296,0.0004383,30]
[359159456,1745752140937,-430.95,0.00043835,120]
[359159457,1745752140963,-1000.0,0.00043835,120]
[359159458,1745752140987,-1000.0,0.00043835,120]
[359159459,1745752141010,-1000.0,0.00043835,120]
[359159460,1745752141034,-1000.0,0.00043835,120]
[359159461,1745752141058,-1050.80450909,0.00043835,120]
[359159462,1745752141082,-186.99,0.00043836,30]
[359159477,1745752232314,-38.30489419,0.00019371,2]
[359159478,1745752232324,-200.0,0.0001942,2]
[359159479,1745752232333,-29.28941312,0.00019469,2]
[359159480,1745752232368,-220.71058688,0.00019469,2]
[359159481,1745752232377,-200.0,0.00019518,2]
[359159482,1745752232387,-174.68440101,0.00019647,2]
[359159483,1745752232396,-283.01029161,0.00019671,2]
[359159484,1745752232405,-189.25783037,0.0001968,2]
[359159485,1745752232415,-283.01029154,0.00019696,2]
[359159486,1745752232424,-248.22659858,0.00019722,2]
[359159487,1745752232527,-34.78369296,0.00019722,2]
[359159488,1745752232537,-283.01029154,0.00019747,2]
[359159489,1745752232547,-207.4,0.00019759,2]
[359159490,1745752232557,-1200.0,0.0001977,2]
[359159491,1745752232566,-300.0,0.0001977,2]
[359159492,1745752232575,-300.0,0.0001977,2]
[359159493,1745752232584,-1221.47175225,0.0001977,2]
[359159494,1745752232594,-4341.61093825,0.00019771,2]
[359159537,1745752234395,5003.0,0.00041,30]
[359159540,1745752238227,-361.26540913,0.00019771,2]
[359159541,1745752238238,-351.6,0.00019771,2]
[359159542,1745752238279,-9905.18195262,0.00019771,2]
[359159543,1745752238289,-7877.588,0.00019771,2]
[359159544,1745752238298,-500.0,0.00019771,2]
[359159545,1745752238307,-2589.2538,0.00019771,2]
[359159546,1745752238317,-772.0148,0.00019771,2]
[359159547,1745752238327,-283.01029154,0.00019773,2]
[359159548,1745752238338,-1683.8379618,0.00019781,2]
[359159549,1745752238347,-1221.47175222,0.00019784,2]
[359159550,1745752238358,-283.01029154,0.00019798,2]
[359159551,1745752238367,-1221.47175222,0.00019799,2]
[359159552,1745752238377,-199.93840045,0.000198,2]
[359159553,1745752238387,-1221.47175222,0.00019813,2]
[359159554,1745752238396,-283.01029154,0.00019824,2]
[359159555,1745752238406,-877.0,0.00019832,2]
[359159556,1745752238415,-283.01029154,0.00019849,2]
[359159557,1745752238425,-1285.3,0.00019869,2]
[359159558,1745752238435,-480.52,0.00019869,2]
[359159559,1745752238444,-1859.62,0.00019869,2]
[359159560,1745752238453,-400.0,0.00019869,2]
[359159561,1745752238464,-400.0,0.00019869,2]
[359159562,1745752238474,-456.01434326,0.00019869,2]
[359159563,1745752238483,-400.0,0.00019869,2]
[359159564,1745752238494,-400.0,0.00019869,2]
[359159565,1745752238503,-400.0,0.00019869,2]
[359159566,1745752238513,-400.0,0.00019869,2]
[359159567,1745752238524,-400.0,0.00019869,2]
[359159568,1745752238534,-400.0,0.00019869,2]
[359159569,1745752238544,-400.0,0.00019869,2]
[359159570,1745752238554,-400.0,0.00019869,2]
[359159571,1745752238564,-400.0,0.00019869,2]